bitfinex/quotes_SOLUSD_20250823
["timestamp","ask_amount","ask_price","bid_price","bid_amount"]
[1755918565589,41.07,198.04,198.03,0.03]
[1755918566186,71.21906227,198.04,198.03,0.03]
[1755918566632,200.07332559,198.04,198.03,0.03]
[1755918566780,211.5773089,198.04,198.03,0.03]
[1755918566985,213.6003209,198.04,198.03,0.03]
[1755918567507,213.60026971,198.04,198.03,0.03]
[1755918568783,79.20026971,198.04,198.03,0.03]
[1755918569910,79.20055853,198.04,198.03,0.03]
[1755918570299,79.20074753,198.04,198.03,0.03]
[1755918571613,13.87991715,198.02,198.01,0.03]
[1755918571809,71.33825058,198.02,198.01,0.03]
[1755918572107,65.57426222,198.02,198.01,0.03]
[1755918572311,77.07824553,198.02,198.01,0.03]
[1755918572694,81.17913648,198.02,198.01,0.03]
[1755918572903,160.17913648,198.02,198.01,0.03]
[1755918573416,13.59559401,198.0,197.99,0.03]
[1755918573718,69.44306433,198.0,197.99,0.03]
[1755918574014,77.07210738,198.0,197.99,0.03]
[1755918574202,79.09573338,198.0,197.99,0.03]
[1755918575021,71.12008237,198.0,197.99,0.03]
[1755918575227,73.14329837,198.0,197.99,0.03]
[1755918575392,61.63931506,198.0,197.99,0.03]
[1755918575593,71.26224394,198.0,197.99,0.03]
[1755918575795,73.42772451,198.0,197.99,0.03]
[1755918577122,77.20200454,198.0,197.99,0.03]
[1755918577625,77.2013544,198.0,197.99,0.03]
[1755918577799,78.94,197.96,197.94,0.71]
[1755918578007,130.72398331,197.95,197.94,0.71]
[1755918578308,51.78398331,197.95,197.94,0.71]
[1755918580108,26.0,197.92,197.91,0.03]
[1755918580427,66.28,197.92,197.91,0.03]
[1755918580613,77.78398331,197.92,197.91,0.03]
[1755918580796,40.28,197.92,197.91,0.74]
[1755918580998,51.78398331,197.92,197.91,0.03]
[1755918582099,71.1221238,197.92,197.91,0.03]
[1755918585226,70.4321238,197.92,197.91,0.03]
[1755918585397,71.1221238,197.92,197.91,0.03]
[1755918586526,70.4321238,197.92,197.91,0.03]
[1755918587013,71.40644694,197.92,197.91,0.03]
[1755918587322,70.71644694,197.92,197.91,0.03]
[1755918589800,30.43644694,197.92,197.91,0.03]
[1755918590018,70.69644694,197.92,197.91,0.03]
[1755918590732,65.35957732,197.92,197.91,0.03]
[1755918592422,70.4121238,197.92,197.91,0.03]
[1755918592624,78.97,197.9,197.89,0.74]
[1755918592831,51.76398331,197.9,197.89,0.74]
[1755918594924,51.76398331,197.9,197.89,0.03]
[1755918595833,40.26,197.9,197.89,0.74]
[1755918597604,160.4,197.91,197.89,0.74]
[1755918597916,26.0,197.91,197.89,0.74]
[1755918598113,40.26,197.9,197.89,0.74]
[1755918600229,0.06,197.99,197.89,12.24398331]
[1755918600427,13.65559401,197.99,197.93,11.50398331]
[1755918600618,40.26,197.98,197.95,11.50398331]
[1755918600818,40.26,197.98,197.96,0.66]
[1755918601035,0.06,197.99,197.97,0.66]
[1755918601239,40.26,197.98,197.97,0.66]
[1755918601542,40.26,197.98,197.95,12.16398331]
[1755918601936,40.26,197.98,197.95,0.66]
[1755918602325,40.26,197.98,197.97,11.50398331]
[1755918602549,40.24,197.98,197.97,12.16398331]
[1755918602926,0.06,197.99,197.97,12.16398331]
[1755918603249,40.24,197.98,197.91,26.28432314]
[1755918603423,40.24,197.98,197.93,0.28432314]
[1755918603625,0.06,197.99,197.95,0.28432314]
[1755918603954,0.06,197.99,197.98,26.0]
[1755918604159,0.06,197.99,197.98,29.67989467]
[1755918604457,0.06,197.99,197.98,42.12820112]
[1755918604819,0.06,197.99,197.98,15.84387798]
[1755918605021,0.06,197.99,197.98,12.16398331]
[1755918606123,0.06,197.99,197.89,0.03]
[1755918606124,0.06,197.99,197.95,0.66]
[1755918606353,0.06,197.99,197.96,12.16398331]
[1755918606354,40.3,197.99,197.96,12.16398331]
[1755918606526,40.3,197.99,197.98,11.50398331]
[1755918606853,40.24,198.02,197.98,15.84279175]
[1755918607030,40.24,198.02,198.01,11.50398331]
[1755918607350,0.06,198.03,198.01,11.50398331]
[1755918607717,0.06,198.03,198.02,0.66]
[1755918609552,0.06,198.03,198.02,15.84060211]
[1755918609925,0.06,198.03,198.02,4.3366188]
[1755918610218,0.06,198.03,198.02,29.72051926]
[1755918610462,0.06,198.04,198.03,0.28432314]
[1755918610753,0.06,198.06,198.05,26.28432314]
[1755918610926,0.06,198.06,198.05,42.12492525]
[1755918611831,0.06,198.07,198.06,13.59559401]
[1755918612045,0.06,198.07,198.06,29.43619612]
[1755918613355,0.06,198.07,198.06,42.12492525]
[1755918617844,0.06,198.07,198.06,42.100622]
[1755918618040,0.06,198.07,198.06,30.59663869]
[1755918618347,0.06,198.07,198.06,42.09910486]
[1755918619370,0.06,198.07,198.06,38.44830645]
[1755918625271,0.06,198.09,198.07,13.59559401]
[1755918625468,0.06,198.09,198.08,11.78830645]
[1755918625799,0.06,198.09,198.08,12.44830645]
[1755918626562,0.06,198.09,198.08,0.28432314]
[1755918626763,0.06,198.09,198.08,11.78830645]
[1755918628061,0.06,198.09,198.08,12.45830645]
[1755918629575,0.06,198.09,198.06,66.83]
[1755918629888,0.06,198.09,198.08,11.78830645]
[1755918630266,0.06,198.09,198.08,29.69181801]
[1755918630491,0.06,198.11,198.09,0.28432314]
[1755918630670,0.06,198.11,198.09,95.16181801]
[1755918630871,0.06,198.11,198.1,28.73749487]
[1755918631105,0.06,198.11,198.1,29.40749487]
[1755918632991,0.06,198.11,198.1,29.40515614]
[1755918633297,0.06,198.11,198.1,69.82947928]
[1755918633598,0.06,198.14,198.13,26.28432314]
[1755918633786,0.06,198.14,198.13,41.42388527]
[1755918633991,0.06,198.14,198.13,41.42384869]
[1755918634283,0.06,198.14,198.13,41.42459082]
[1755918635590,0.06,198.14,198.13,41.42554247]
[1755918636009,0.06,198.14,198.13,42.09554247]
[1755918636296,0.06,198.14,198.13,42.09670734]
[1755918638686,0.06,198.15,198.14,0.28432314]
[1755918638887,0.06,198.15,198.14,55.54670734]
[1755918639177,0.06,198.15,198.14,56.21670734]
[1755918639388,0.06,198.15,198.14,56.22165017]
[1755918639623,0.06,198.15,198.14,55.55165017]
[1755918640372,0.06,198.15,198.14,56.22165017]
[1755918640574,0.06,198.15,198.14,69.81724418]
[1755918641297,0.1,198.17,198.16,26.28432314]
[1755918641507,2.020253,198.29,198.16,106.65122749]
[1755918641670,0.71,198.26,198.21,26.0]
[1755918641871,40.12,198.33,198.25,11.50398331]
[1755918642182,40.12,198.33,198.3,11.50398331]
[1755918642621,40.12,198.33,198.24,40.12]
[1755918642774,40.12,198.33,198.25,3.64761374]
[1755918642975,0.71,198.3,198.26,3.64761374]
[1755918643185,0.71,198.3,198.27,3.64761374]
[1755918643404,0.71,198.3,198.22,26.0]
[1755918643710,0.71,198.3,198.24,11.50398331]
[1755918643885,0.71,198.3,198.25,3.6487389]
[1755918644085,0.71,198.3,198.24,11.50398331]
[1755918644300,0.71,198.3,198.25,3.64890524]
[1755918644621,0.71,198.3,198.26,3.64890524]
[1755918644827,0.71,198.3,198.24,11.50398331]
[1755918645013,12.21398331,198.3,198.25,3.65190176]
[1755918645210,12.21398331,198.29,198.23,11.50398331]
[1755918645405,12.21398331,198.29,198.24,3.65243321]
[1755918645406,0.71,198.28,198.24,3.65243321]
[1755918645602,0.71,198.28,198.25,3.65243321]
[1755918645816,0.71,198.28,198.22,11.50398331]
[1755918646117,0.71,198.28,198.23,3.65181855]
[1755918646417,0.71,198.28,198.24,3.65181855]
[1755918646615,0.71,198.28,198.25,3.65181855]
[1755918646800,11.50398331,198.27,198.2,11.50398331]
[1755918647004,0.71,198.26,198.21,3.65159212]
[1755918647199,0.71,198.26,198.22,3.65159212]
[1755918647406,0.71,198.26,198.23,3.65159212]
[1755918647712,0.71,198.26,198.2,11.50398331]
[1755918647713,0.71,198.26,198.24,3.65159212]
[1755918647926,79.0,198.25,198.21,11.50398331]
[1755918648125,0.71,198.24,198.22,3.65416153]
[1755918648322,0.71,198.24,198.18,26.0]
[1755918648496,0.71,198.23,198.22,11.50398331]
[1755918648700,79.71,198.23,198.22,15.15972302]
[1755918649101,79.0,198.23,198.22,15.15972302]
[1755918649320,0.71,198.25,198.22,15.15972302]
[1755918649504,0.71,198.27,198.24,11.50398331]
[1755918649703,0.71,198.27,198.25,15.15972302]
[1755918650025,0.71,198.27,198.26,3.65573971]
[1755918651332,0.71,198.27,198.26,3.65682346]
[1755918653322,0.77,198.29,198.26,3.65682346]
[1755918653510,0.71,198.28,198.27,3.65682346]
[1755918654198,0.71,198.28,198.26,11.50398331]
[1755918654405,0.06,198.29,198.27,3.65983345]
[1755918654606,0.06,198.29,198.25,11.50398331]
[1755918654817,0.06,198.29,198.26,3.65973126]
[1755918655025,0.71,198.28,198.27,3.65951849]
[1755918657215,0.71,198.28,198.25,11.50398331]
[1755918657415,0.71,198.28,198.26,3.65929142]
[1755918657596,0.71,198.28,198.25,11.50398331]
[1755918657814,0.71,198.28,198.26,3.65919623]
[1755918658120,0.71,198.28,198.25,11.50398331]
[1755918658321,0.71,198.28,198.26,3.65907333]
[1755918658518,0.71,198.28,198.25,11.50398331]
[1755918658829,0.71,198.28,198.26,3.65895707]
[1755918659022,0.71,198.28,198.25,11.50398331]
[1755918659199,0.71,198.28,198.23,0.67]
[1755918659200,0.71,198.28,198.26,3.65828602]
[1755918659402,0.06,198.29,198.25,11.50398331]
[1755918659612,0.06,198.29,198.26,3.65868489]
[1755918659809,0.72,198.29,198.25,11.50398331]
[1755918660007,0.72,198.29,198.26,15.16231213]
[1755918660210,0.06,198.29,198.28,11.50398331]
[1755918660416,0.06,198.29,198.28,15.87190512]
[1755918660936,0.06,198.29,198.28,4.36792181]
[1755918661340,0.06,198.29,198.28,15.87190512]
[1755918661908,0.06,198.29,198.28,16.15622826]
[1755918662513,0.06,198.29,198.28,16.13646334]
[1755918663214,0.06,198.3,198.29,0.28432314]
[1755918663415,0.06,198.3,198.29,42.13610995]
[1755918665717,105.0,198.43,198.29,42.13610995]
[1755918665718,0.66,198.48,198.34,0.28432314]
[1755918665913,0.66,198.48,198.46,11.50398331]
[1755918666135,40.44,198.52,198.37,13.59559401]
[1755918666136,0.66,198.5,198.47,11.50398331]
[1755918666323,0.66,198.48,198.47,11.50398331]
[1755918666840,26.0,198.55,198.47,11.50398331]
[1755918666841,0.66,198.6,198.5,26.0]
[1755918667046,0.66,198.6,198.57,11.50398331]
[1755918667252,0.66,198.6,198.51,4.61122266]
[1755918667253,11.503983,198.6,198.58,11.50398331]
[1755918667541,0.66,198.62,198.59,11.50398331]
[1755918667716,0.66,198.62,198.56,0.71]
[1755918667717,0.66,198.62,198.6,11.50398331]
[1755918667919,41.1,198.64,198.6,11.50398331]
[1755918668131,40.44,198.64,198.6,11.50398331]
[1755918668340,0.66,198.63,198.51,0.28432314]
[1755918668543,40.42,198.62,198.53,0.71]
[1755918668831,41.08,198.62,198.6,11.50398331]
[1755918669212,41.08,198.62,198.56,0.71]
[1755918669533,0.66,198.62,198.6,11.50398331]
[1755918669849,41.14,198.62,198.6,11.50398331]
[1755918670323,0.66,198.61,198.53,0.28432314]
[1755918670514,0.66,198.61,198.59,11.50398331]
[1755918671324,0.66,198.61,198.55,0.71]
[1755918671634,0.66,198.61,198.58,11.50398331]
[1755918672049,40.48,198.62,198.58,11.50398331]
[1755918672222,41.14,198.62,198.58,11.50398331]
[1755918672645,0.66,198.61,198.55,0.71]
[1755918672819,0.66,198.61,198.57,11.50398331]
[1755918673018,0.66,198.6,198.57,11.50398331]
[1755918673613,40.48,198.62,198.57,11.50398331]
[1755918673817,0.66,198.61,198.58,11.50398331]
[1755918674015,0.66,198.6,198.51,26.0]
[1755918674256,0.66,198.6,198.55,11.50398331]
[1755918674448,0.66,198.6,198.54,11.50398331]
[1755918674835,0.66,198.6,198.52,0.28432314]
[1755918675163,12.16398331,198.6,198.51,26.71]
[1755918675331,0.66,198.59,198.53,11.50398331]
[1755918675531,12.16398331,198.59,198.53,11.50398331]
[1755918675731,0.66,198.58,198.53,11.50398331]
[1755918675964,40.48,198.57,198.53,11.50398331]
[1755918676460,0.66,198.56,198.53,11.50398331]
[1755918676661,40.48,198.57,198.53,11.50398331]
[1755918676863,0.66,198.55,198.53,11.50398331]
[1755918677236,0.06,198.61,198.57,39.59559401]
[1755918677560,4.8685295,198.73,198.64,13.87991715]
[1755918677734,4.8685295,198.73,198.61,26.0]
[1755918677735,45.3085295,198.73,198.61,26.0]
[1755918677936,61.8444768,198.73,198.66,11.50398331]
[1755918678234,0.66,198.72,198.66,11.50398331]
[1755918678849,0.66,198.72,198.65,0.71]
[1755918679050,0.66,198.72,198.66,11.50398331]
[1755918680365,0.66,198.72,198.67,17.76534005]
[1755918680662,0.66,198.72,198.66,17.76534005]
[1755918681160,0.66,198.72,198.65,0.71]
[1755918681665,0.66,198.72,198.66,17.76534005]
[1755918682638,18.42534005,198.72,198.66,17.76534005]
[1755918683358,40.36,198.71,198.65,0.71]
[1755918683562,40.36,198.71,198.68,17.76534005]
[1755918683877,40.34,198.7,198.68,17.76534005]
[1755918684044,40.34,198.7,198.68,18.47534005]
[1755918684239,4.2085295,198.73,198.69,17.76534005]
[1755918684436,4.2085295,198.73,198.69,0.71]
[1755918684437,44.5485295,198.73,198.69,0.71]
[1755918684662,44.5485295,198.73,198.7,17.76534005]
[1755918684965,44.5485295,198.73,198.69,0.71]
[1755918685163,44.5485295,198.73,198.71,17.76534005]
[1755918685164,4.2085295,198.73,198.71,17.76534005]
[1755918685868,4.2085295,198.73,198.72,18.47534005]
[1755918687161,4.2085295,198.73,198.72,0.71]
[1755918688142,4.2085295,198.73,198.72,0.99432314]
[1755918688558,4.2085295,198.73,198.72,0.71]
[1755918688757,4.2085295,198.73,198.72,17.76534005]
[1755918690362,4.2085295,198.73,198.7,0.69]
[1755918690363,4.2085295,198.73,198.68,0.28432314]
[1755918690670,4.2085295,198.73,198.71,17.76534005]
[1755918691089,4.2085295,198.73,198.72,17.76534005]
[1755918691787,4.2685295,198.73,198.72,17.76534005]
[1755918692885,22.71386955,198.73,198.67,17.76534005]
[1755918693059,0.68,198.72,198.66,17.76534005]
[1755918693681,0.68,198.72,198.65,0.69]
[1755918693861,4.9485295,198.73,198.69,17.76534005]
[1755918694065,4.9485295,198.73,198.67,0.69]
[1755918694383,4.9485295,198.73,198.69,17.76534005]
[1755918695080,4.2685295,198.73,198.71,17.76534005]
[1755918695453,0.68,198.72,198.68,17.76534005]
[1755918695666,0.68,198.72,198.65,26.69]
[1755918695867,0.68,198.72,198.67,17.76534005]
[1755918696273,0.68,198.71,198.66,17.76534005]
[1755918696467,4.2685295,198.73,198.66,17.76534005]
[1755918696671,0.68,198.71,198.67,17.76534005]
[1755918696885,4.2685295,198.73,198.67,17.76534005]
[1755918697077,0.68,198.7,198.67,17.76534005]
[1755918697785,0.68,198.69,198.62,0.69]
[1755918698083,0.68,198.69,198.64,17.76534005]
[1755918698261,0.68,198.68,198.63,17.76534005]
[1755918701083,0.68,198.63,198.61,0.03]
[1755918701784,17.76534005,198.65,198.61,0.03]
[1755918701966,0.68,198.62,198.61,0.03]
[1755918702767,26.0,198.72,198.61,0.03]
[1755918702768,4.2685295,198.73,198.63,26.0]
[1755918702965,4.2685295,198.73,198.69,17.76534005]
[1755918703177,0.68,198.72,198.69,17.76534005]
[1755918703577,4.2685295,198.73,198.68,17.76534005]
[1755918703768,0.68,198.71,198.68,17.76534005]
[1755918704287,0.68,198.7,198.61,26.72]
[1755918704600,40.96,198.7,198.63,17.76534005]
[1755918704801,0.68,198.69,198.63,17.76534005]
[1755918705398,18.44534005,198.69,198.62,17.76534005]
[1755918705584,0.68,198.68,198.61,0.03]
[1755918705777,18.44534005,198.68,198.62,3.56509519]
[1755918706098,17.76534005,198.65,198.61,0.03]
[1755918706300,17.76534005,198.64,198.61,0.03]
[1755918706800,0.68,198.63,198.61,0.03]
[1755918707193,0.68,198.63,198.62,3.57716837]
[1755918707366,18.44534005,198.63,198.61,0.03]
[1755918707566,18.44534005,198.62,198.61,0.03]
[1755918709194,18.44534005,198.62,198.61,3.61962669]
[1755918711775,18.44534005,198.62,198.61,2.89962669]
[1755918711776,37.07567376,198.62,198.61,2.89962669]
[1755918711976,37.07567376,198.62,198.59,0.03]
[1755918711977,39.59559401,198.6,198.59,0.03]
[1755918712219,62.39618078,198.6,198.59,0.03]
[1755918712389,63.07618078,198.6,198.59,0.03]
[1755918713818,31.36093406,198.58,198.57,0.03]
[1755918714014,71.8652572,198.58,198.45,0.69]
[1755918714195,13.59559401,198.56,198.45,0.69]
[1755918714393,17.76534005,198.48,198.45,0.69]
[1755918714588,40.22,198.48,198.43,0.69]
[1755918714792,17.76534005,198.47,198.43,0.69]
[1755918715014,17.76534005,198.46,198.43,0.69]
[1755918715303,17.76534005,198.45,198.41,0.89]
[1755918715605,40.2,198.44,198.42,0.69]
[1755918715824,17.76534005,198.45,198.42,0.69]
[1755918715825,15.133554,198.56,198.43,17.76534005]
[1755918715987,15.133554,198.56,198.42,26.97432314]
[1755918715988,17.76534005,198.54,198.47,17.76534005]
[1755918716192,58.02534005,198.55,198.49,17.76534005]
[1755918716498,58.02534005,198.55,198.49,18.45534005]
[1755918716694,58.02534005,198.55,198.49,0.69]
[1755918717010,17.76534005,198.52,198.46,18.45534005]
[1755918717190,17.76534005,198.52,198.46,0.69]
[1755918717680,26.0,198.57,198.47,17.76534005]
[1755918717884,17.76534005,198.55,198.48,18.43534005]
[1755918718098,17.76534005,198.55,198.49,0.67]
[1755918718600,40.26,198.54,198.49,0.67]
[1755918718792,58.02534005,198.54,198.49,0.67]
[1755918719195,58.72534005,198.54,198.49,0.67]
[1755918719403,58.02534005,198.54,198.49,0.67]
[1755918719593,58.72534005,198.54,198.49,0.67]
[1755918719996,40.28,198.53,198.49,0.67]
[1755918720215,0.7,198.6,198.51,17.76534005]
[1755918720422,0.7,198.6,198.45,26.0]
[1755918720423,17.76534005,198.59,198.52,18.43534005]
[1755918720594,17.76534005,198.58,198.52,0.67]
[1755918720796,17.76534005,198.56,198.49,18.43534005]
[1755918721008,40.28,198.55,198.49,18.43534005]
[1755918721326,26.0,198.6,198.5,18.43534005]
[1755918721618,17.76534005,198.58,198.52,17.76534005]
[1755918721820,17.76534005,198.58,198.51,18.43534005]
[1755918722140,40.28,198.59,198.52,18.43534005]
[1755918722295,40.28,198.58,198.52,0.67]
[1755918722499,40.28,198.58,198.52,18.43534005]
[1755918723038,58.04534005,198.58,198.52,18.43534005]
[1755918723328,40.28,198.58,198.52,17.76534005]
[1755918723504,40.28,198.58,198.53,0.67]
[1755918723705,40.26,198.57,198.53,18.43534005]
[1755918724219,40.26,198.57,198.49,0.28432314]
[1755918724220,17.76534005,198.6,198.54,0.67]
[1755918724430,40.26,198.59,198.54,18.43534005]
[1755918724727,40.26,198.59,198.55,0.67]
[1755918725699,119.26,198.59,198.56,18.43534005]
[1755918725926,119.26,198.59,198.58,17.76534005]
[1755918725927,79.0,198.59,198.58,17.76534005]
[1755918726218,40.26,198.62,198.58,0.67]
[1755918726630,79.0,198.64,198.6,17.76534005]
[1755918726802,119.26,198.63,198.61,0.67]
[1755918727005,0.06,198.62,198.61,0.67]
[1755918728536,0.06,198.62,198.58,0.67]
[1755918728725,0.06,198.62,198.58,18.43534005]
[1755918728927,18.46534005,198.61,198.54,0.67]
[1755918729236,17.76534005,198.58,198.52,18.46534005]
[1755918729441,40.22,198.57,198.52,0.7]
[1755918729644,58.68534005,198.57,198.52,0.7]
[1755918729944,58.68534005,198.57,198.53,0.67]
[1755918729945,40.22,198.57,198.53,0.67]
[1755918730110,40.22,198.57,198.52,17.79534005]
[1755918730304,40.22,198.57,198.53,0.67]
[1755918730722,40.22,198.56,198.53,0.67]
[1755918730927,40.22,198.56,198.52,0.03]
[1755918731533,40.2,198.57,198.52,0.03]
[1755918731710,17.76534005,198.55,198.52,0.03]
[1755918732107,0.7,198.56,198.52,0.03]
[1755918732328,40.2,198.57,198.52,0.03]
[1755918732528,57.96534005,198.57,198.52,0.03]
[1755918732733,58.66534005,198.57,198.52,0.03]
[1755918733121,40.9,198.57,198.52,0.7]
[1755918733320,0.06,198.62,198.53,18.43534005]
[1755918733321,40.22,198.56,198.53,18.43534005]
[1755918733633,40.22,198.56,198.53,0.67]
[1755918734834,40.22,198.56,198.53,17.76534005]
[1755918735131,40.22,198.56,198.53,18.43534005]
[1755918736612,0.06,198.62,198.55,17.76534005]
[1755918736811,0.06,198.62,198.56,4.07908273]
[1755918737008,0.7,198.68,198.57,4.07908273]
[1755918737214,58.10534005,198.67,198.58,0.67]
[1755918737529,18.46534005,198.66,198.6,17.76534005]
[1755918737845,17.76534005,198.64,198.58,17.76534005]
[1755918738013,40.36,198.63,198.58,17.76534005]
[1755918738219,0.7,198.62,198.58,17.76534005]
[1755918738418,40.36,198.63,198.58,18.43534005]
[1755918738629,18.46534005,198.62,198.55,17.76534005]
[1755918738945,0.7,198.66,198.61,17.76534005]
[1755918739127,0.7,198.66,198.56,4.08281207]
[1755918739128,40.44,198.66,198.62,17.76534005]
[1755918739316,40.44,198.66,198.62,18.43534005]
[1755918739917,40.44,198.66,198.62,17.76534005]
[1755918740119,40.44,198.67,198.63,18.43534005]
[1755918740540,40.44,198.67,198.63,17.76534005]
[1755918740736,0.7,198.66,198.58,0.67]
[1755918740936,0.7,198.66,198.61,17.76534005]
[1755918741139,40.44,198.67,198.61,0.67]
[1755918741326,40.44,198.67,198.62,17.76534005]
[1755918741521,41.14,198.67,198.63,17.76534005]
[1755918741941,0.7,198.67,198.63,17.76534005]
[1755918742144,40.48,198.66,198.63,17.76534005]
[1755918742743,40.48,198.66,198.62,17.76534005]
[1755918743343,0.7,198.67,198.62,17.76534005]
[1755918743541,40.46,198.66,198.63,17.76534005]
[1755918744241,0.7,198.66,198.63,17.76534005]
[1755918744542,40.46,198.65,198.63,17.76534005]
[1755918745626,79.0,198.68,198.58,26.0]
[1755918745945,40.42,198.67,198.63,17.76534005]
[1755918746140,41.12,198.67,198.63,17.76534005]
[1755918746732,40.42,198.67,198.62,17.76534005]
[1755918747050,0.7,198.66,198.62,17.76534005]
[1755918747242,0.7,198.65,198.61,17.76534005]
[1755918747947,3.9485295,198.73,198.62,0.95432314]
[1755918748150,40.52,198.72,198.7,17.76534005]
[1755918748447,40.56,198.72,198.71,17.76534005]
[1755918748826,40.56,198.72,198.67,0.67]
[1755918749030,40.56,198.72,198.66,26.0]
[1755918749031,40.56,198.72,198.7,17.76534005]
[1755918752228,40.56,198.72,198.66,0.67]
[1755918752457,40.56,198.72,198.7,17.76534005]
[1755918752654,40.56,198.72,198.68,17.76534005]
[1755918752838,0.7,198.71,198.67,17.76534005]
[1755918753445,4.6485295,198.73,198.67,17.76534005]
[1755918753752,40.5,198.72,198.67,17.76534005]
[1755918754251,41.2,198.72,198.67,17.76534005]
[1755918754647,41.2,198.72,198.68,17.76534005]
[1755918754850,40.5,198.72,198.68,17.76534005]
[1755918755040,3.9485295,198.73,198.67,0.67]
[1755918755245,40.46,198.72,198.64,0.67]
[1755918755432,41.16,198.72,198.67,17.76534005]
[1755918755635,0.7,198.71,198.67,17.76534005]
[1755918755955,0.7,198.71,198.66,17.76534005]
[1755918756355,18.46534005,198.7,198.63,17.76534005]
[1755918756746,18.46534005,198.69,198.62,17.76534005]
[1755918756936,40.5,198.68,198.62,17.76534005]
[1755918757871,17.76534005,198.66,198.58,0.67]
[1755918758156,0.7,198.67,198.56,0.03]
[1755918758157,17.76534005,198.63,198.56,18.46534005]
[1755918758357,17.76534005,198.61,198.56,0.03]
[1755918758654,40.48,198.6,198.56,0.03]
[1755918758957,41.18,198.6,198.58,0.03]
[1755918759341,40.48,198.6,198.58,0.03]
[1755918759540,0.7,198.59,198.58,0.03]
[1755918759739,41.18,198.6,198.58,0.03]
[1755918760256,40.48,198.6,198.58,0.03]
[1755918760571,41.18,198.6,198.58,0.03]
[1755918761428,0.7,198.6,198.58,0.03]
[1755918761629,58.90534005,198.59,198.58,0.03]
[1755918764466,77.53643433,198.59,198.58,0.03]
[1755918764644,39.59559401,198.57,198.56,0.03]
[1755918764840,57.6452572,198.57,198.56,0.03]
[1755918765044,13.87991715,198.56,198.54,0.03]
[1755918765247,58.18534005,198.55,198.54,0.03]
[1755918765447,63.92185478,198.55,198.54,0.03]
[1755918765844,77.80177193,198.55,198.54,0.03]
[1755918766178,13.59559401,198.54,198.52,0.03]
[1755918766343,58.18534005,198.53,198.52,0.03]
[1755918766752,58.88534005,198.53,198.52,0.03]
[1755918767566,63.92236216,198.53,198.52,0.03]
[1755918768349,77.80227931,198.53,198.52,0.03]
[1755918768551,31.36093406,198.49,198.39,0.67]
[1755918768877,71.74093406,198.49,198.39,0.67]
[1755918769255,72.44093406,198.49,198.4,0.67]
[1755918769454,0.7,198.53,198.47,17.76534005]
[1755918769647,40.38,198.52,198.39,0.28432314]
[1755918769848,40.38,198.52,198.48,0.7]
[1755918770054,79.0,198.51,198.48,0.7]
[1755918770257,40.44,198.5,198.48,0.7]
[1755918772378,40.44,198.5,198.48,0.03]
[1755918772552,40.4,198.49,198.48,0.7]
[1755918772878,40.4,198.49,198.48,0.03]
[1755918773084,79.0,198.51,198.48,0.03]
[1755918773255,40.4,198.49,198.48,0.7]
[1755918773452,40.4,198.49,198.48,0.03]
[1755918773677,79.0,198.51,198.48,0.03]
[1755918773881,40.4,198.5,198.48,0.03]
[1755918774072,40.4,198.5,198.49,0.67]
[1755918774481,79.0,198.51,198.49,0.67]
[1755918774809,40.38,198.5,198.49,0.67]
[1755918775010,40.36,198.5,198.49,0.67]
[1755918775376,79.0,198.55,198.49,18.43534005]